bitfinex-derivatives/quotes_BNBF0:USTF0_20250524
["timestamp","ask_amount","ask_price","bid_price","bid_amount"]
[1748100694705,0.29689889,673.63,673.01,0.61059477]
[1748100696003,0.29689889,673.63,673.02,0.61059477]
[1748100697107,0.29689889,673.63,673.03,0.61059477]
[1748100698908,0.29689889,673.63,673.04,0.61059477]
[1748100700310,0.29689889,673.63,673.05,0.61059477]
[1748100701409,0.29689889,673.63,673.06,0.61059477]
[1748100702309,0.29689889,673.63,672.99,0.61059477]
[1748100703609,0.29689889,673.63,673.0,1.28659477]
[1748100704509,0.29689889,673.63,673.01,0.61059477]
[1748100722328,0.29689889,673.63,673.02,0.61059477]
[1748100723528,0.29689889,673.63,673.03,0.61059477]
[1748100724531,0.29689889,673.63,673.04,0.61059477]
[1748100726331,0.29689889,673.63,673.05,0.61059477]
[1748100728033,0.29689889,673.63,673.06,0.61059477]
[1748100729434,0.29689889,673.63,673.07,0.61059477]
[1748100730738,0.29689889,673.63,673.01,0.61059477]
[1748100731837,0.29689889,673.63,673.0,0.676]
[1748100731838,0.29689889,673.63,673.02,0.61059477]
[1748100732936,0.29689889,673.63,673.01,0.61059477]
[1748100734742,0.29689889,673.63,673.0,0.676]
[1748100742649,0.29689889,673.63,672.6,0.64806224]
[1748100743049,0.29689889,673.63,672.61,0.61287073]
[1748100744250,0.29689889,673.63,672.62,0.61287073]
[1748100745647,0.29689889,673.63,672.63,0.61287073]
[1748100746644,0.29689889,673.63,672.64,0.754]
[1748100747053,0.29689889,673.63,672.64,1.36687073]
[1748100748351,0.29689889,673.63,672.65,0.61287073]
[1748100749852,0.29689889,673.63,672.66,0.61287073]
[1748100750954,0.29689889,673.63,672.67,0.61287073]
[1748100751956,0.29689889,673.63,672.68,0.61287073]
[1748100752855,0.29689889,673.63,672.69,0.61287073]
[1748100754160,0.29689889,673.63,672.7,0.61287073]
[1748100755160,0.29689889,673.63,672.71,0.61287073]
[1748100756358,0.29689889,673.63,672.64,0.754]
[1748100757464,0.29689889,673.63,672.65,0.61107325]
[1748100758858,0.29689889,673.63,672.66,0.61107325]
[1748100760068,0.29689889,673.63,672.67,0.61107325]
[1748100761062,0.29689889,673.63,672.64,0.754]
[1748100762267,0.29689889,673.63,672.65,0.61095484]
[1748100763368,0.29689889,673.63,672.64,0.754]
[1748100795591,0.29689889,673.63,672.14,0.64806224]
[1748100796096,0.29689889,673.63,672.15,0.61088154]
[1748100796997,0.29689889,673.63,672.16,0.61088154]
[1748100797999,0.29689889,673.63,672.17,0.61088154]
[1748100799202,0.29689889,673.63,672.18,0.61088154]
[1748100799600,0.29689889,673.63,672.18,1.20788154]
[1748100800400,0.29689889,673.63,672.19,0.61088154]
[1748100802102,0.29689889,673.63,672.2,0.61088154]
[1748100803502,0.29689889,673.63,672.21,0.61088154]
[1748100814815,0.29689889,673.63,672.22,0.61088154]
[1748100816515,0.29689889,673.63,672.23,0.61088154]
[1748100817920,0.29689889,673.63,672.24,0.61088154]
[1748100818818,0.29689889,673.63,672.25,0.61088154]
[1748100820821,0.29689889,673.63,672.26,0.61088154]
[1748100821921,0.29689889,673.63,672.27,0.61088154]
[1748100823321,0.29689889,673.63,672.28,0.61088154]
[1748100824321,0.29689889,673.63,672.29,0.61088154]
[1748100825325,0.29689889,673.63,672.19,0.61088154]
[1748100839830,0.29689889,673.63,671.98,0.61088154]
[1748100841733,0.29689889,673.63,672.01,0.64806224]
[1748100842033,0.29689889,673.63,672.02,0.642]
[1748100842635,0.29689889,673.63,672.03,0.61088154]
[1748100843835,0.29689889,673.63,672.04,0.61088154]
[1748100844537,0.29689889,673.63,672.05,0.61088154]
[1748100845736,3.69944117,673.4,672.06,0.61088154]
[1748100845936,0.29700911,673.38,672.06,0.61088154]
[1748100846937,0.29700911,673.38,672.07,0.61088154]
[1748100848439,0.29700911,673.38,672.08,0.61088154]
[1748100849437,0.29700911,673.38,672.09,0.61088154]
[1748100851140,0.29700911,673.38,672.06,0.61088154]
[1748100852538,0.29700911,673.38,672.03,0.61088154]
[1748100855438,0.25873606,673.05,672.03,0.61088154]
[1748100855642,0.29716357,673.03,672.03,0.61088154]
[1748100855938,0.29716357,673.03,672.02,0.642]
[1748100873950,0.29716357,673.03,672.03,0.61015095]
[1748100875349,0.29716357,673.03,672.04,0.61015095]
[1748100876853,0.29716357,673.03,672.05,0.61015095]
[1748100878051,0.29716357,673.03,672.06,0.61015095]
[1748100879250,0.29716357,673.03,672.07,0.61015095]
[1748100880653,0.29716357,673.03,672.08,0.61015095]
[1748100881655,0.29716357,673.03,672.09,0.61015095]
[1748100882656,0.29716357,673.03,672.1,0.61015095]
[1748100883656,0.29716357,673.03,672.11,0.61015095]
[1748100884854,0.29716357,673.03,672.12,0.61015095]
[1748100886059,0.29716357,673.03,672.13,0.61015095]
[1748100887458,0.29716357,673.03,672.14,0.61015095]
[1748100888068,0.29716357,673.03,672.15,0.527]
[1748100888661,0.29716357,673.03,672.16,0.61015095]
[1748100899768,0.29716357,673.03,672.17,0.61015095]
[1748100901271,0.29716357,673.03,672.16,0.61015095]
[1748100904970,0.29716357,673.03,672.17,0.61015095]
[1748100906274,0.29716357,673.03,672.16,0.61015095]
[1748100912379,0.29716357,673.03,672.13,1.25821319]
[1748100913578,0.29716357,673.03,672.14,0.61015095]
[1748100913978,0.29716357,673.03,672.15,0.77]
[1748100914679,0.29716357,673.03,672.16,0.61015095]
[1748100916182,0.29716357,673.03,672.17,0.61015095]
[1748100917378,0.29716357,673.03,672.18,0.61015095]
[1748100918482,0.29716357,673.03,672.19,0.61015095]
[1748100919684,0.29716357,673.03,672.2,0.61015095]
[1748100920881,0.29716357,673.03,672.16,0.61015095]
[1748100922080,0.29716357,673.03,672.15,0.77]
[1748100922081,0.29716357,673.03,672.17,0.61015095]
[1748100923287,0.29716357,673.03,672.18,0.61015095]
[1748100924490,0.29716357,673.03,672.19,0.61015095]
[1748100925690,0.29716357,673.03,672.2,0.61015095]
[1748100927091,0.29716357,673.03,672.21,0.61015095]
[1748100928291,0.29716357,673.03,672.22,0.61015095]
[1748100930395,0.29716357,673.03,672.23,0.61015095]
[1748100931195,0.29716357,673.03,672.24,0.61015095]
[1748100932595,0.29716357,673.03,672.25,0.61015095]
[1748100933795,0.29716357,673.03,672.26,0.61015095]
[1748100934896,0.29716357,673.03,672.27,0.61015095]
[1748100936099,0.29716357,673.03,672.28,0.61015095]
[1748100937302,0.29716357,673.03,672.29,0.61015095]
[1748100938100,0.29716357,673.03,672.3,0.61015095]
[1748100940203,0.29716357,673.03,672.31,0.61015095]
[1748100941305,0.29716357,673.03,672.32,0.61015095]
[1748100943303,0.29716357,673.03,672.33,0.61015095]
[1748100944208,0.29716357,673.03,672.34,0.61015095]
[1748100945807,0.29716357,673.03,672.35,0.61015095]
[1748100946408,0.29716357,673.03,672.36,0.553]
[1748100946606,0.29716357,673.03,672.37,0.61015095]
[1748100948007,0.29716357,673.03,672.38,0.61015095]
[1748100949311,0.29716357,673.03,672.39,0.61015095]
[1748100951212,0.29716357,673.03,672.4,0.61015095]
[1748100952507,0.29716357,673.03,672.41,0.61015095]
[1748100954215,0.29716357,673.03,672.42,0.61015095]
[1748100955509,0.29716357,673.03,672.43,0.61015095]
[1748100957213,0.29716357,673.03,672.44,0.61015095]
[1748100957917,0.29716357,673.03,672.45,0.61015095]
[1748100959018,0.29716357,673.03,672.46,0.61015095]
[1748100959919,0.29716357,673.03,672.47,0.61015095]
[1748100961720,0.29716357,673.03,672.48,0.61015095]
[1748100963025,0.29716357,673.03,672.37,0.61015095]
[1748100964829,0.29716357,673.03,672.36,0.553]
[1748100964830,0.29716357,673.03,672.38,0.61015095]
[1748100966240,0.29716357,673.03,672.39,0.61015095]
[1748100967129,0.29716357,673.03,672.4,0.61015095]
[1748100968030,0.29716357,673.03,672.41,0.61015095]
[1748100969035,0.29716357,673.03,672.36,0.553]
[1748100969036,0.29716357,673.03,672.42,0.61015095]
[1748100970035,0.29716357,673.03,672.43,0.61015095]
[1748100971437,0.29716357,673.03,672.44,0.61015095]
[1748100972832,0.29716357,673.03,672.45,0.61015095]
[1748100974237,0.29716357,673.03,672.46,0.61015095]
[1748100975438,0.29716357,673.03,672.47,0.61015095]
[1748100976539,0.29716357,673.03,672.48,0.61015095]
[1748100977639,0.29716357,673.03,672.37,0.61015095]
[1748100979339,0.29716357,673.03,672.38,0.61015095]
[1748100981040,0.29716357,673.03,672.39,0.791]
[1748100981242,0.29716357,673.03,672.39,1.40115095]
[1748100982441,0.29716357,673.03,672.4,0.61015095]
[1748101017463,0.29716357,673.03,672.2,0.61015095]
[1748101018759,0.29716357,673.03,672.21,0.61015095]
[1748101019665,0.29716357,673.03,672.22,0.703]
[1748101020164,0.29716357,673.03,672.23,0.61015095]
[1748101021865,0.29716357,673.03,672.24,0.61015095]
[1748101022966,0.29716357,673.03,672.25,0.61015095]
[1748101024466,0.29716357,673.03,672.26,0.61015095]
[1748101025862,0.29716357,673.03,672.27,0.61015095]
[1748101027469,0.29716357,673.03,672.28,0.61015095]
[1748101028872,0.29716357,673.03,672.29,0.61015095]
[1748101029872,0.29716357,673.03,672.3,0.61015095]
[1748101031770,0.29716357,673.03,672.31,0.61015095]
[1748101032966,0.29716357,673.03,672.32,0.61015095]
[1748101034172,0.29716357,673.03,672.33,0.61015095]
[1748101035868,0.29716357,673.03,672.37,0.64806224]
[1748101036869,0.29716357,673.03,672.38,0.61015095]
[1748101038776,0.29716357,673.03,672.39,0.61015095]
[1748101039976,0.29716357,673.03,672.4,0.61015095]
[1748101041677,0.29716357,673.03,672.41,0.61015095]
[1748101042379,0.29716357,673.03,672.42,0.61015095]
[1748101043676,0.29716357,673.03,672.04,1.30152519]
[1748101043677,0.29716357,673.03,672.43,0.61015095]
[1748101044680,0.29716357,673.03,672.44,0.61015095]
[1748101045888,0.29716357,673.03,672.45,0.727]
[1748101046581,0.29716357,673.03,672.46,0.61015095]
[1748101047688,0.29716357,673.03,672.47,0.61015095]
[1748101049292,0.29716357,673.03,672.48,0.61015095]
[1748101050390,0.29716357,673.03,672.49,0.61015095]
[1748101051490,0.29716357,673.03,672.45,0.727]
[1748101051491,0.29716357,673.03,672.5,0.61015095]
[1748101052695,0.29716357,673.03,672.51,0.61015095]
[1748101054096,0.29716357,673.03,672.52,0.61015095]
[1748101055495,0.29716357,673.03,672.53,0.61015095]
[1748101057297,0.29716357,673.03,672.54,0.61015095]
[1748101059297,0.29716357,673.03,672.55,0.61015095]
[1748101061000,0.29716357,673.03,672.56,0.61015095]
[1748101061501,0.29716357,673.03,672.56,1.45615095]
[1748101061896,0.29716357,673.03,672.57,0.61015095]
[1748101064906,0.29716357,673.03,672.56,0.846]
[1748101068010,0.29716357,673.03,672.57,0.6179632]
[1748101069310,0.29716357,673.03,672.58,0.6179632]
[1748101070110,0.29716357,673.03,672.59,0.6179632]
[1748101071415,0.29716357,673.03,672.6,0.6179632]
[1748101072714,0.29716357,673.03,672.57,0.6179632]
[1748101073812,0.29716357,673.03,672.58,0.6179632]
[1748101075011,0.29716357,673.03,672.59,0.6179632]
[1748101075916,0.29716357,673.03,672.57,0.6179632]
[1748101094334,0.29716357,673.03,672.37,1.26602544]
[1748101095733,0.29716357,673.03,672.38,0.6179632]
[1748101097139,0.29716357,673.03,672.39,0.588]
[1748101097337,0.29716357,673.03,672.39,1.2059632]
[1748101098433,0.29716357,673.03,672.4,0.6179632]
[1748101099641,0.29716357,673.03,672.41,0.6179632]
[1748101100843,0.29716357,673.03,672.42,0.6179632]
[1748101102944,0.29716357,673.03,672.43,0.6179632]
[1748101103844,0.29716357,673.03,672.44,0.6179632]
[1748101105245,0.29716357,673.03,672.45,0.6179632]
[1748101106148,0.29716357,673.03,672.46,0.6179632]
[1748101107147,0.29716357,673.03,672.47,0.6179632]
[1748101108650,0.29716357,673.03,672.48,0.6179632]
[1748101110248,0.29716357,673.03,672.49,0.6179632]
[1748101111350,0.29716357,673.03,672.5,0.6179632]
[1748101113451,0.29716357,673.03,672.51,0.6179632]
[1748101114649,0.29716357,673.03,672.52,0.6179632]
[1748101116054,0.29716357,673.03,672.39,0.588]
[1748101116055,0.29716357,673.03,672.53,0.6179632]
[1748101117152,0.29716357,673.03,672.54,0.6179632]
[1748101118660,0.29716357,673.03,672.39,1.23606224]
[1748101118661,0.29716357,673.03,672.55,0.6179632]
[1748101120060,0.29716357,673.03,672.56,0.6179632]
[1748101121655,0.29716357,673.03,672.57,0.6179632]
[1748101122455,0.29716357,673.03,672.58,0.6179632]
[1748101123657,0.29716357,673.03,672.59,0.6179632]
[1748101124961,0.29716357,673.03,672.6,0.6179632]
[1748101126663,0.29716357,673.03,672.61,0.6179632]
[1748101128267,0.29716357,673.03,672.62,0.6179632]
[1748101130268,0.29716357,673.03,672.63,0.6179632]
[1748101131068,0.29716357,673.03,672.64,0.6179632]
[1748101132869,0.29716357,673.03,672.5,0.64806224]
[1748101133369,0.29716357,673.03,672.51,0.6179632]
[1748101134669,0.29716357,673.03,672.52,1.26602544]
[1748101135571,0.29716357,673.03,672.53,0.6179632]
[1748101137070,0.29716357,673.03,672.54,0.6179632]
[1748101138475,0.29716357,673.03,672.55,0.6179632]
[1748101139878,0.29716357,673.03,672.56,0.6179632]
[1748101141682,0.29716357,673.03,672.57,0.6179632]
[1748101143479,0.29716357,673.03,672.58,0.6179632]
[1748101144785,0.29716357,673.03,672.59,0.6179632]
[1748101146387,0.29716357,673.03,672.6,0.6179632]
[1748101147388,0.29716357,673.03,672.61,0.6179632]
[1748101148489,0.29716357,673.03,672.62,0.6179632]
[1748101148791,0.29716357,673.03,672.62,1.3109632]
[1748101149793,0.29716357,673.03,672.63,0.6179632]
[1748101151089,0.29716357,673.03,672.64,0.6179632]
[1748101151989,0.29716357,673.03,672.65,0.6179632]
[1748101153190,0.29716357,673.03,672.66,0.6179632]
[1748101153986,0.29716357,673.03,672.67,0.6179632]
[1748101155392,0.29716357,673.03,672.68,0.6179632]
[1748101157094,0.29716357,673.03,672.69,0.6179632]
[1748101158288,0.29716357,673.03,672.7,0.6179632]
[1748101159591,0.29716357,673.03,672.71,0.6179632]
[1748101160294,0.29716357,673.03,672.72,0.6179632]
[1748101161899,0.29716357,673.03,672.73,0.6179632]
[1748101163098,0.29716357,673.03,672.74,0.6179632]
[1748101164599,0.29716357,673.03,672.75,0.6179632]
[1748101166204,0.29716357,673.03,672.76,0.6179632]
[1748101167199,0.29716357,673.03,672.77,0.6179632]
[1748101168401,0.29716357,673.03,672.78,0.6179632]
[1748101169108,0.29716357,673.03,672.79,0.6179632]
[1748101171009,0.29716357,673.03,672.62,0.693]
[1748101171810,0.29716357,673.03,672.63,0.61598213]
[1748101172812,0.29716357,673.03,672.64,0.61598213]
[1748101174112,0.29716357,673.03,672.65,0.61598213]
[1748101176311,0.29716357,673.03,672.66,0.61598213]
[1748101177212,0.29716357,673.03,672.67,0.61598213]
[1748101178914,0.29716357,673.03,672.68,0.61598213]
[1748101180315,0.29716357,673.03,672.69,0.61598213]
[1748101181415,0.29716357,673.03,672.7,0.61598213]
[1748101182517,0.29716357,673.03,672.71,0.61598213]
[1748101183916,0.29716357,673.03,672.72,0.61598213]
[1748101185017,0.29716357,673.03,672.73,0.61598213]
[1748101186319,0.29716357,673.03,672.74,0.61598213]
[1748101186617,0.29716357,673.03,672.74,1.46398213]
[1748101187317,0.29716357,673.03,672.75,0.61598213]
[1748101197029,0.29716357,673.03,672.76,0.61598213]
[1748101198429,0.29716357,673.03,672.77,0.61598213]
[1748101199831,0.29716357,673.03,672.78,0.61598213]
[1748101200830,0.29716357,673.03,672.74,0.848]
[1748101202031,0.29716357,673.03,672.75,0.61512696]
[1748101203032,0.29716357,673.03,672.76,0.61512696]
[1748101204628,0.29716357,673.03,672.74,0.848]
[1748101205633,0.29716357,673.03,672.75,0.61516218]
[1748101207335,0.29716357,673.03,672.74,0.848]
[1748101239465,0.29716357,673.03,672.01,0.64806224]
[1748101240070,0.29716357,673.03,672.02,0.61276259]
[1748101241866,0.29716357,673.03,672.08,0.64806224]
[1748101242070,0.29716357,673.03,672.09,0.485]
[1748101243674,0.29716357,673.03,672.1,0.61276259]
[1748101245173,0.29716357,673.03,672.17,0.64806224]
[1748101246369,0.29716357,673.03,672.18,0.61276259]
[1748101248176,0.29716357,673.03,672.23,0.64806224]
[1748101249270,0.29716357,673.03,672.24,0.61276259]
[1748101250875,0.29716357,673.03,672.25,0.61276259]
[1748101252377,0.29716357,673.03,672.26,0.61276259]
[1748101253778,0.29716357,673.03,672.27,0.61276259]
[1748101254780,0.29716357,673.03,672.28,0.61276259]
[1748101255979,0.29716357,673.03,672.29,0.61276259]
[1748101257284,0.29716357,673.03,672.3,0.61276259]
[1748101258683,0.29716357,673.03,672.31,0.61276259]
[1748101259786,0.29716357,673.03,672.32,0.61276259]
[1748101261784,0.29716357,673.03,672.27,0.61276259]
[1748101262892,0.29716357,673.03,672.28,0.61276259]
[1748101263689,0.29716357,673.03,672.33,0.64806224]
[1748101264690,0.29716357,673.03,672.34,0.61276259]
[1748101266389,0.29716357,673.03,672.41,0.64806224]
[1748101267391,0.29716357,673.03,672.42,0.61276259]
[1748101269091,0.29716357,673.03,672.43,0.61276259]
[1748101270591,0.29716357,673.03,672.44,0.61276259]
[1748101272193,0.29716357,673.03,672.45,0.61276259]
[1748101273392,0.29716357,673.03,672.46,0.61276259]
[1748101274695,0.29716357,673.03,672.47,0.61276259]
[1748101275596,0.29716357,673.03,672.48,0.61276259]
[1748101276497,0.29716357,673.03,672.49,0.61276259]
[1748101277398,0.29716357,673.03,672.39,0.61276259]
[1748101278698,0.29716357,673.03,672.4,0.61276259]
[1748101279899,0.29716357,673.03,672.41,0.61276259]
[1748101281204,0.29716357,673.03,672.42,0.61276259]
[1748101282300,0.29716357,673.03,672.43,0.61276259]
[1748101283504,0.29716357,673.03,672.44,0.61276259]
[1748101284401,0.29716357,673.03,672.45,0.61276259]
[1748101285904,0.29716357,673.03,672.38,0.64806224]
[1748101285905,0.29716357,673.03,672.46,0.61276259]
[1748101286905,0.29716357,673.03,672.47,0.593]
[1748101287206,0.29716357,673.03,672.48,0.61276259]
[1748101288605,0.29716357,673.03,672.49,0.61276259]
[1748101289706,0.29716357,673.03,672.48,0.61276259]
[1748101290905,0.29716357,673.03,672.49,0.61276259]
[1748101291902,0.29716357,673.03,672.48,0.61276259]
[1748101292907,0.29716357,673.03,672.49,0.61276259]
[1748101294407,0.29716357,673.03,672.48,0.61276259]
[1748101297409,0.29716357,673.03,672.49,0.61276259]
[1748101299316,0.29716357,673.03,672.5,0.61276259]
[1748101300420,0.29716357,673.03,672.51,0.61276259]
[1748101301821,0.29716357,673.03,672.52,0.61276259]
[1748101303021,0.29716357,673.03,672.53,0.61276259]
[1748101304723,0.29716357,673.03,672.54,0.61276259]
[1748101305925,0.29716357,673.03,672.48,0.61276259]
[1748101307627,0.29716357,673.03,672.49,0.61276259]
[1748101308826,0.29716357,673.03,672.5,0.61276259]
[1748101310528,0.29716357,673.03,672.51,0.61276259]
[1748101311526,0.29716357,673.03,672.48,0.61276259]
[1748101323442,0.29716357,673.03,672.49,0.61276259]
[1748101324845,0.29716357,673.03,672.5,0.61276259]
[1748101326040,0.29716357,673.03,672.51,0.61276259]
[1748101327044,0.29716357,673.03,672.52,0.61276259]
[1748101328546,0.29716357,673.03,672.53,0.61276259]
[1748101330547,0.29716357,673.03,672.54,0.61276259]
[1748101331349,0.29716357,673.03,672.39,0.61276259]
[1748101332748,0.29716357,673.03,672.4,0.61276259]
[1748101333045,0.29716357,673.03,672.41,0.565]
[1748101334047,0.29716357,673.03,672.42,0.61276259]
[1748101335553,0.29716357,673.03,672.43,0.61276259]
[1748101336453,0.29716357,673.03,672.44,0.61276259]
[1748101338056,0.29716357,673.03,672.45,0.61276259]
[1748101339058,0.29716357,673.03,672.46,0.61276259]
[1748101340354,0.29716357,673.03,672.47,0.61276259]
[1748101341359,0.29716357,673.03,672.48,0.61276259]
[1748101342860,0.29716357,673.03,672.49,0.61276259]
[1748101343864,0.29716357,673.03,672.5,0.61276259]
[1748101345262,0.29716357,673.03,672.51,0.61276259]
[1748101346264,0.29716357,673.03,672.52,0.61276259]
[1748101347865,0.29716357,673.03,672.53,0.61276259]
[1748101349168,0.29716357,673.03,672.54,0.61276259]
[1748101351274,0.29716357,673.03,672.55,0.61276259]
[1748101352372,0.29716357,673.03,672.41,0.565]
[1748101352373,0.29716357,673.03,672.56,0.61276259]
[1748101353576,0.29716357,673.03,672.57,0.61276259]
[1748101354874,0.29716357,673.03,672.58,0.61276259]
[1748101355878,0.29716357,673.03,672.59,0.61276259]
[1748101357878,0.29716357,673.03,672.6,0.61276259]
[1748101358679,0.29716357,673.03,672.41,0.565]
[1748101358680,0.29716357,673.03,672.42,0.61276259]
[1748101360482,0.29716357,673.03,672.43,0.61276259]
[1748101362083,0.29716357,673.03,672.44,0.61276259]
[1748101363288,0.29716357,673.03,672.45,0.61276259]
[1748101364288,0.29716357,673.03,672.46,0.61276259]
[1748101365590,0.29716357,673.03,672.47,0.61276259]
[1748101366986,0.29716357,673.03,672.48,0.61276259]
[1748101367592,0.29716357,673.03,672.49,0.61276259]
[1748101369296,0.29716357,673.03,672.5,0.61276259]
[1748101370692,0.29716357,673.03,672.51,0.61276259]
[1748101371897,0.29716357,673.03,672.52,0.61276259]
[1748101372796,0.29716357,673.03,672.53,0.61276259]
[1748101375102,0.29716357,673.03,672.54,0.61276259]
[1748101375900,0.29716357,673.03,672.55,0.62]
[1748101376503,0.29716357,673.03,672.56,0.61276259]
[1748101377914,0.29716357,673.03,672.57,0.61276259]
[1748101378907,0.29716357,673.03,672.58,0.61276259]
[1748101380408,0.29716357,673.03,672.59,0.61276259]
[1748101381709,0.29716357,673.03,672.6,0.61276259]
[1748101383109,0.29716357,673.03,672.61,0.61276259]
[1748101384009,0.29716357,673.03,672.62,0.61276259]
[1748101385310,0.29716357,673.03,672.55,0.62]
[1748101385311,0.29716357,673.03,672.63,0.61276259]
[1748101386208,0.29716357,673.03,672.64,0.61276259]
[1748101387610,0.29716357,673.03,672.65,0.61276259]
[1748101388811,0.29716357,673.03,672.66,0.61276259]
[1748101390214,0.29716357,673.03,672.67,0.61276259]
[1748101391712,0.29716357,673.03,672.68,0.61276259]
[1748101393114,0.29716357,673.03,672.69,0.61276259]
[1748101394318,0.29716357,673.03,672.7,0.61276259]
[1748101396422,0.29716357,673.03,672.71,0.61276259]
[1748101398022,0.29716357,673.03,672.72,0.61276259]
[1748101399821,0.29716357,673.03,672.62,0.61276259]
[1748101401226,0.29716357,673.03,672.63,0.61276259]
[1748101402828,0.29716357,673.03,672.64,0.61276259]
[1748101403828,0.29716357,673.03,672.65,0.61276259]
[1748101404928,0.29716357,673.03,672.66,0.61276259]
[1748101406328,0.29716357,673.03,672.67,0.61276259]
[1748101407528,0.29716357,673.03,672.55,0.62]
[1748101407529,0.29716357,673.03,672.68,0.61276259]
[1748101408525,0.29716357,673.03,672.69,0.61276259]
[1748101409732,0.29716357,673.03,672.7,0.61276259]
[1748101410833,0.29716357,673.03,672.61,0.61276259]
[1748101412033,0.29716357,673.03,672.62,0.61276259]
[1748101412834,0.29716357,673.03,672.63,0.61276259]
[1748101413835,0.29716357,673.03,672.55,0.62]
[1748101413836,0.29716357,673.03,672.64,0.61276259]
[1748101414935,0.29716357,673.03,672.65,0.61276259]
[1748101415935,0.29716357,673.03,672.6,0.61276259]
[1748101417136,0.29716357,673.03,672.61,0.61276259]
[1748101418533,0.29716357,673.03,672.62,0.61276259]
[1748101420136,0.29716357,673.03,672.63,0.61276259]
[1748101421850,0.29716357,673.03,672.64,0.61276259]
[1748101422641,0.29716357,673.03,672.65,0.639]
[1748101422940,0.29716357,673.03,672.66,0.61276259]
[1748101425548,0.29716357,673.03,672.67,0.61276259]
[1748101427341,0.29716357,673.03,672.66,0.61276259]
[1748101428751,0.29716357,673.03,672.67,0.61276259]
[1748101430046,0.29716357,673.03,672.66,0.61276259]
[1748101432343,0.29716357,673.03,672.65,0.639]
[1748101464676,0.29716357,673.03,672.3,0.64806224]
[1748101465385,0.29716357,673.03,672.32,0.64806224]
[1748101466383,0.29716357,673.03,672.33,0.60026646]
[1748101467685,0.29716357,673.03,672.34,0.596]
[1748101468285,0.29716357,673.03,672.35,0.60026646]
[1748101469183,0.29716357,673.03,672.36,0.60026646]
[1748101470785,0.29716357,673.03,672.37,0.60026646]
[1748101471985,0.29716357,673.03,672.38,0.60026646]
[1748101473388,0.29716357,673.03,672.39,0.60026646]
[1748101474987,0.29716357,673.03,672.4,0.60026646]
[1748101476188,0.29716357,673.03,672.41,0.60026646]
[1748101477788,0.29716357,673.03,672.42,0.60026646]
[1748101479090,0.29716357,673.03,672.34,0.596]
[1748101479091,0.29716357,673.03,672.43,0.60026646]
[1748101479988,0.29716357,673.03,672.44,0.60026646]
[1748101481090,0.29716357,673.03,672.37,0.64806224]
[1748101481091,0.29716357,673.03,672.45,0.60026646]
[1748101481989,0.29716357,673.03,672.46,0.60026646]
[1748101483598,0.29716357,673.03,672.47,0.60026646]
[1748101484495,0.29716357,673.03,672.48,0.60026646]
[1748101485895,0.29716357,673.03,672.49,0.60026646]
[1748101487299,0.29716357,673.03,672.5,0.60026646]
[1748101488793,0.29716357,673.03,672.51,0.60026646]
[1748101489799,0.29716357,673.03,672.52,0.60026646]
[1748101491202,0.29716357,673.03,672.53,0.60026646]
[1748101492303,0.29716357,673.03,672.54,0.60026646]
[1748101494106,0.29716357,673.03,672.55,0.60026646]
[1748101495206,0.29716357,673.03,672.56,0.60026646]
[1748101497408,0.29716357,673.03,672.57,0.60026646]
[1748101498606,0.29716357,673.03,672.58,0.60026646]
[1748101499606,0.29716357,673.03,672.45,0.60026646]
[1748101500611,0.29716357,673.03,672.46,0.60026646]
[1748101501712,0.29716357,673.03,672.47,0.60026646]
[1748101503111,0.29716357,673.03,672.48,0.60026646]
[1748101504314,0.29716357,673.03,672.49,0.60026646]
[1748101505615,0.29716357,673.03,672.5,0.60026646]
[1748101506718,0.29716357,673.03,672.51,0.60026646]
[1748101508015,0.29716357,673.03,672.52,0.60026646]
[1748101509818,0.29716357,673.03,672.53,0.60026646]
[1748101511023,0.29716357,673.03,672.54,0.60026646]
[1748101512216,0.29716357,673.03,672.55,0.60026646]
[1748101513421,0.29716357,673.03,672.56,0.60026646]
[1748101514818,0.29716357,673.03,672.57,0.60026646]
[1748101516023,0.29716357,673.03,672.58,0.60026646]
[1748101517525,0.29716357,673.03,672.59,0.60026646]
[1748101518624,0.29716357,673.03,672.6,0.60026646]
[1748101520425,0.29716357,673.03,672.61,0.60026646]
[1748101521125,0.29716357,673.03,672.62,0.60026646]
[1748101521427,0.29716357,673.03,672.62,1.05626646]
[1748101522522,0.29716357,673.03,672.63,0.60026646]
[1748101523931,0.29716357,673.03,672.64,0.60026646]
[1748101525632,0.29716357,673.03,672.65,0.60026646]
[1748101526732,0.29716357,673.03,672.66,0.60026646]
[1748101527634,0.29716357,673.03,672.62,0.456]
[1748101527635,0.29716357,673.03,672.63,0.60026646]
[1748101542938,0.29716357,673.03,672.64,0.60026646]
[1748101544136,0.29716357,673.03,672.65,0.60026646]
[1748101545134,0.29716357,673.03,672.66,0.60026646]
[1748101547140,0.29716357,673.03,672.63,0.60026646]
[1748101548342,0.29716357,673.03,672.64,0.60026646]
[1748101549843,0.29716357,673.03,672.65,0.547]
[1748101550243,0.29716357,673.03,672.65,1.14726646]
[1748101551840,0.29716357,673.03,672.66,0.60026646]
[1748101564960,0.29716357,673.03,672.67,0.60026646]
[1748101566759,0.29716357,673.03,672.68,0.60026646]
[1748101567863,0.29716357,673.03,672.69,0.60026646]